fUSD/lending_fUSD_20260526
["ID","MTS","AMOUNT","RATE_DAILY","PERIOD"]
[423049606,1779798965000,-500.0,0.00039167,120]
[423049607,1779798965000,-500.0,0.00039167,120]
[423049605,1779798965000,-500.0,0.00039167,120]
[423049604,1779798965000,-500.0,0.00039167,120]
[423049602,1779798965000,-500.0,0.00039167,120]
[423049603,1779798965000,-500.0,0.00039167,120]
[423049596,1779798965000,-500.0,0.00039167,120]
[423049600,1779798965000,-500.0,0.00039167,120]
[423049599,1779798965000,-3347.43103,0.00039167,60]
[423049598,1779798965000,-4240.96794193,0.00039167,120]
[423049597,1779798965000,-442.6307559,0.00039167,120]
[423049595,1779798965000,-500.0,0.00039167,120]
[423049594,1779798965000,-500.0,0.00039167,120]
[423049609,1779798965000,-500.0,0.00039167,120]
[423049601,1779798965000,-500.0,0.00039167,120]
[423049611,1779798965000,-500.0,0.00039167,30]
[423049612,1779798965000,-193.42673754,0.00039167,30]
[423049628,1779798965000,-3863.09,0.00039167,120]
[423049610,1779798965000,-638.14608685,0.00039167,120]
[423049629,1779798965000,-3863.09,0.00039167,120]
[423049627,1779798965000,-3863.09,0.00039167,120]
[423049626,1779798965000,-3863.09,0.00039167,120]
[423049624,1779798965000,-3863.09,0.00039167,120]
[423049623,1779798965000,-3863.09,0.00039167,120]
[423049622,1779798965000,-3863.09,0.00039167,120]
[423049621,1779798965000,-3863.09,0.00039167,120]
[423049625,1779798965000,-3863.09,0.00039167,120]
[423049618,1779798965000,-3863.09,0.00039167,120]
[423049617,1779798965000,-3863.09,0.00039167,120]
[423049619,1779798965000,-3863.09,0.00039167,120]
[423049616,1779798965000,-3863.09,0.00039167,120]
[423049615,1779798965000,-508.25676149,0.00039167,60]
[423049614,1779798965000,-3000.0,0.00039167,60]
[423049613,1779798965000,-7254.95821189,0.00039167,30]
[423049620,1779798965000,-3863.09,0.00039167,120]
[423049640,1779798966000,-151.0,0.00039167,120]
[423049644,1779798966000,-1246.57,0.00039167,120]
[423049643,1779798966000,-1246.57,0.00039167,120]
[423049642,1779798966000,-181.0,0.00039167,120]
[423049641,1779798966000,-1336.3939253,0.00039167,120]
[423049639,1779798966000,-3863.10209941,0.00039167,120]
[423049638,1779798966000,-3863.09,0.00039167,120]
[423049645,1779798966000,-1246.57,0.00039167,120]
[423049635,1779798966000,-3863.09,0.00039167,120]
[423049636,1779798966000,-3863.09,0.00039167,120]
[423049634,1779798966000,-3863.09,0.00039167,120]
[423049632,1779798966000,-3863.09,0.00039167,120]
[423049633,1779798966000,-3863.09,0.00039167,120]
[423049631,1779798966000,-3863.09,0.00039167,120]
[423049630,1779798966000,-3863.09,0.00039167,120]
[423049637,1779798966000,-3863.09,0.00039167,120]
[423049648,1779798966000,-1246.57,0.00039167,120]
[423049665,1779798966000,-1246.57,0.00039167,120]
[423049646,1779798966000,-1246.57,0.00039167,120]
[423049647,1779798966000,-1246.57,0.00039167,120]
[423049664,1779798966000,-1246.57,0.00039167,120]
[423049663,1779798966000,-1246.57,0.00039167,120]
[423049660,1779798966000,-1246.57,0.00039167,120]
[423049661,1779798966000,-1246.57,0.00039167,120]
[423049659,1779798966000,-1246.57,0.00039167,120]
[423049658,1779798966000,-1246.57,0.00039167,120]
[423049657,1779798966000,-1246.57,0.00039167,120]
[423049662,1779798966000,-1246.57,0.00039167,120]
[423049653,1779798966000,-1246.57,0.00039167,120]
[423049655,1779798966000,-1246.57,0.00039167,120]
[423049654,1779798966000,-1246.57,0.00039167,120]
[423049652,1779798966000,-1246.57,0.00039167,120]
[423049651,1779798966000,-1246.57,0.00039167,120]
[423049650,1779798966000,-1246.57,0.00039167,120]
[423049649,1779798966000,-1246.57,0.00039167,120]
[423049656,1779798966000,-1246.57,0.00039167,120]
[423049675,1779798967000,-5686.13171568,0.00039167,30]
[423049682,1779798967000,-655.77644759,0.00039167,30]
[423049680,1779798967000,-151.0,0.00039167,120]
[423049681,1779798967000,-182.72518752,0.00039167,120]
[423049679,1779798967000,-566.07250095,0.00039167,120]
[423049677,1779798967000,-29665.09914617,0.00039167,31]
[423049676,1779798967000,-3491.01500294,0.00039167,30]
[423049672,1779798967000,-509.03722429,0.00039167,30]
[423049683,1779798967000,-4159.3014395,0.00039167,120]
[423049673,1779798967000,-460.87615421,0.00039167,120]
[423049671,1779798967000,-644.20458164,0.00039167,60]
[423049670,1779798967000,-2757.92,0.00039167,120]
[423049668,1779798967000,-3948.59921752,0.00039167,60]
[423049669,1779798967000,-22071.304289,0.00039167,30]
[423049667,1779798967000,-7013.62992022,0.00039167,90]
[423049666,1779798967000,-1246.73003962,0.00039167,120]
[423049674,1779798967000,-5082.7408419,0.00039167,30]
[423049685,1779798967000,-1123.0,0.00039167,30]
[423049678,1779798967000,-500.0,0.00039167,120]
[423049686,1779798967000,-1148.26285817,0.00039167,120]
[423049684,1779798967000,-4538.02663962,0.00039167,30]
[423049700,1779798967000,-2223.44,0.00039167,120]
[423049701,1779798967000,-2223.44,0.00039167,120]
[423049699,1779798967000,-2223.44,0.00039167,120]
[423049698,1779798967000,-2223.44,0.00039167,120]
[423049697,1779798967000,-17458.84345806,0.00039167,30]
[423049695,1779798967000,-2223.44,0.00039167,120]
[423049696,1779798967000,-2223.44,0.00039167,120]
[423049702,1779798967000,-2223.44,0.00039167,120]
[423049693,1779798967000,-2223.44,0.00039167,120]
[423049691,1779798967000,-2223.44,0.00039167,120]
[423049692,1779798967000,-2223.44,0.00039167,120]
[423049703,1779798967000,-2223.44,0.00039167,120]
[423049690,1779798967000,-2223.44,0.00039167,120]
[423049689,1779798967000,-2223.44,0.00039167,120]
[423049687,1779798967000,-7187.97775702,0.00039167,30]
[423049688,1779798967000,-5624.32425305,0.00039167,30]
[423049694,1779798967000,-2223.44,0.00039167,120]
[423049718,1779798968000,-745.8455,0.00039167,120]
[423049716,1779798968000,-500.0,0.00039167,120]
[423049714,1779798968000,-151.0,0.00039167,120]
[423049715,1779798968000,-50129.96426853,0.00039167,120]
[423049713,1779798968000,-2223.48583413,0.00039167,120]
[423049712,1779798968000,-2223.44,0.00039167,120]
[423049711,1779798968000,-2223.44,0.00039167,120]
[423049708,1779798968000,-2223.44,0.00039167,120]
[423049709,1779798968000,-2223.44,0.00039167,120]
[423049707,1779798968000,-2223.44,0.00039167,120]
[423049706,1779798968000,-2223.44,0.00039167,120]
[423049704,1779798968000,-2223.44,0.00039167,120]
[423049705,1779798968000,-2223.44,0.00039167,120]
[423049717,1779798968000,-11073.0,0.00039167,45]
[423049710,1779798968000,-2223.44,0.00039167,120]
[423049719,1779798968000,-500.0,0.00039167,120]
[423049721,1779798968000,-592.35228252,0.00039167,120]
[423049737,1779798968000,-906.64,0.00039167,120]
[423049720,1779798968000,-219.89495044,0.00039167,120]
[423049736,1779798968000,-1335.13,0.00039167,120]
[423049735,1779798968000,-1335.13,0.00039167,120]
[423049734,1779798968000,-1335.13,0.00039167,120]
[423049733,1779798968000,-1335.13,0.00039167,120]
[423049732,1779798968000,-1335.13,0.00039167,120]
[423049730,1779798968000,-1335.13,0.00039167,120]
[423049731,1779798968000,-1335.13,0.00039167,120]
[423049728,1779798968000,-1335.13,0.00039167,120]
[423049727,1779798968000,-1335.13,0.00039167,120]
[423049726,1779798968000,-1335.13,0.00039167,120]
[423049724,1779798968000,-1335.13,0.00039167,120]
[423049725,1779798968000,-1335.13,0.00039167,120]
[423049723,1779798968000,-1335.13,0.00039167,120]
[423049722,1779798968000,-1335.13,0.00039167,120]
[423049729,1779798968000,-1335.13,0.00039167,120]
[423049746,1779798969000,-1335.13,0.00039167,120]
[423049751,1779798969000,-906.64,0.00039167,120]
[423049750,1779798969000,-1335.13,0.00039167,120]
[423049749,1779798969000,-906.64,0.00039167,120]
[423049748,1779798969000,-1335.13,0.00039167,120]
[423049747,1779798969000,-906.64,0.00039167,120]
[423049745,1779798969000,-906.64,0.00039167,120]
[423049752,1779798969000,-1335.13,0.00039167,120]
[423049744,1779798969000,-1335.13,0.00039167,120]
[423049742,1779798969000,-1335.13,0.00039167,120]
[423049740,1779798969000,-1335.13,0.00039167,120]
[423049741,1779798969000,-906.64,0.00039167,120]
[423049739,1779798969000,-906.64,0.00039167,120]
[423049738,1779798969000,-1335.13,0.00039167,120]
[423049743,1779798969000,-906.64,0.00039167,120]
[423049753,1779798969000,-906.64,0.00039167,120]
[423049771,1779798969000,-630.67738391,0.00039167,120]
[423049755,1779798969000,-1335.1714,0.00039167,120]
[423049754,1779798969000,-906.64,0.00039167,120]
[423049770,1779798969000,-906.74395256,0.00039167,120]
[423049769,1779798969000,-906.64,0.00039167,120]
[423049768,1779798969000,-563.63991885,0.00039167,120]
[423049766,1779798969000,-906.64,0.00039167,120]
[423049765,1779798969000,-906.64,0.00039167,120]
[423049763,1779798969000,-906.64,0.00039167,120]
[423049767,1779798969000,-906.64,0.00039167,120]
[423049762,1779798969000,-906.64,0.00039167,120]
[423049760,1779798969000,-906.64,0.00039167,120]
[423049761,1779798969000,-906.64,0.00039167,120]
[423049759,1779798969000,-906.64,0.00039167,120]
[423049758,1779798969000,-906.64,0.00039167,120]
[423049756,1779798969000,-906.64,0.00039167,120]
[423049757,1779798969000,-906.64,0.00039167,120]
[423049764,1779798969000,-906.64,0.00039167,120]
[423049781,1779798970000,-1517.39,0.00039167,120]
[423049786,1779798970000,-1517.39,0.00039167,120]
[423049787,1779798970000,-1517.39,0.00039167,120]
[423049785,1779798970000,-1517.39,0.00039167,120]
[423049784,1779798970000,-1517.39,0.00039167,120]
[423049782,1779798970000,-1517.39,0.00039167,120]
[423049783,1779798970000,-1517.39,0.00039167,120]
[423049780,1779798970000,-183.92232025,0.00039167,120]
[423049773,1779798970000,-1517.39,0.00039167,120]
[423049779,1779798970000,-1517.39,0.00039167,120]
[423049777,1779798970000,-1517.39,0.00039167,120]
[423049776,1779798970000,-1517.39,0.00039167,120]
[423049774,1779798970000,-1517.39,0.00039167,120]
[423049775,1779798970000,-1517.39,0.00039167,120]
[423049788,1779798970000,-1517.39,0.00039167,120]
[423049772,1779798970000,-504.01593832,0.00039167,120]
[423049778,1779798970000,-500.0,0.00039167,120]
[423049789,1779798970000,-1517.39,0.00039167,120]
[423049805,1779798970000,-589.40917119,0.00039167,120]
[423049790,1779798970000,-1517.39,0.00039167,120]
[423049808,1779798970000,-1222.2,0.00039167,120]
[423049807,1779798970000,-570.22329577,0.00039167,120]
[423049806,1779798970000,-646.81274765,0.00039167,120]
[423049804,1779798970000,-160.6996097,0.00039167,120]
[423049803,1779798970000,-500.0,0.00039167,120]
[423049802,1779798970000,-570.5682,0.00039167,120]
[423049801,1779798970000,-581.76716326,0.00039167,120]
[423049800,1779798970000,-1517.46051554,0.00039167,120]
[423049791,1779798970000,-1517.39,0.00039167,120]
[423049799,1779798970000,-1517.39,0.00039167,120]
[423049798,1779798970000,-1517.39,0.00039167,120]
[423049796,1779798970000,-204.50640567,0.00039167,120]
[423049795,1779798970000,-1517.39,0.00039167,120]
[423049793,1779798970000,-1517.39,0.00039167,120]
[423049794,1779798970000,-500.0,0.00039167,120]
[423049792,1779798970000,-1517.39,0.00039167,120]
[423049797,1779798970000,-1517.39,0.00039167,120]
[423049825,1779798971000,-1222.2,0.00039167,120]
[423049824,1779798971000,-1222.2,0.00039167,120]
[423049822,1779798971000,-1222.2,0.00039167,120]
[423049823,1779798971000,-1222.2,0.00039167,120]
[423049820,1779798971000,-1222.2,0.00039167,120]
[423049821,1779798971000,-1222.2,0.00039167,120]
[423049819,1779798971000,-1222.2,0.00039167,120]
[423049818,1779798971000,-1222.2,0.00039167,120]
[423049814,1779798971000,-1222.2,0.00039167,120]
[423049817,1779798971000,-1222.2,0.00039167,120]
[423049815,1779798971000,-1222.2,0.00039167,120]
[423049812,1779798971000,-1222.2,0.00039167,120]
[423049813,1779798971000,-1222.2,0.00039167,120]
[423049811,1779798971000,-1222.2,0.00039167,120]
[423049809,1779798971000,-1222.2,0.00039167,120]
[423049826,1779798971000,-1222.2,0.00039167,120]
[423049816,1779798971000,-1222.2,0.00039167,120]
[423049810,1779798971000,-1222.2,0.00039167,120]
[423049829,1779798971000,-1222.2,0.00039167,120]
[423049828,1779798971000,-500.0,0.00039167,120]
[423049846,1779798971000,-210.48287901,0.00039167,120]
[423049827,1779798971000,-1222.2,0.00039167,120]
[423049844,1779798971000,-228.60511489,0.00039167,120]
[423049843,1779798971000,-500.0,0.00039167,120]
[423049842,1779798971000,-573.23856491,0.00039167,120]
[423049840,1779798971000,-166.32190035,0.00039167,120]
[423049841,1779798971000,-629.2792908,0.00039167,120]
[423049839,1779798971000,-636.24870885,0.00039167,120]
[423049845,1779798971000,-500.0,0.00039167,120]
[423049837,1779798971000,-216.392305,0.00039167,120]
[423049836,1779798971000,-500.0,0.00039167,120]
[423049834,1779798971000,-592.74482796,0.00039167,120]
[423049835,1779798971000,-387.28863156,0.00039167,120]
[423049833,1779798971000,-1222.32103355,0.00039167,120]
[423049832,1779798971000,-1222.2,0.00039167,120]
[423049831,1779798971000,-1222.2,0.00039167,120]
[423049830,1779798971000,-204.56343961,0.00039167,120]
[423049838,1779798971000,-500.0,0.00039167,120]
[423049860,1779798972000,-179.77940479,0.00039167,120]
[423049859,1779798972000,-500.0,0.00039167,120]
[423049858,1779798972000,-630.06264802,0.00039167,120]
[423049857,1779798972000,-633.10230385,0.00039167,120]
[423049856,1779798972000,-194.73417584,0.00039167,120]
[423049855,1779798972000,-500.0,0.00039167,120]
[423049850,1779798972000,-198.896634,0.00039167,120]
[423049853,1779798972000,-500.0,0.00039167,120]
[423049852,1779798972000,-649.91239,0.00039167,120]
[423049851,1779798972000,-202.4297751,0.00039167,120]
[423049847,1779798972000,-647.97898757,0.00039167,120]
[423049849,1779798972000,-622.40132231,0.00039167,120]
[423049848,1779798972000,-500.0,0.00039167,120]
[423049854,1779798972000,-194.73031991,0.00039167,120]
[423049863,1779798972000,-500.0,0.00039167,120]
[423049861,1779798972000,-627.72710781,0.00039167,120]
[423049864,1779798972000,-500.0,0.00039167,120]
[423049879,1779798972000,-258.42118554,0.00039167,120]
[423049878,1779798972000,-500.0,0.00039167,120]
[423049877,1779798972000,-162.40325624,0.00039167,120]
[423049876,1779798972000,-500.0,0.00039167,120]
[423049873,1779798972000,-168.40700654,0.00039167,120]
[423049875,1779798972000,-558.82870311,0.00039167,120]
[423049874,1779798972000,-194.61067676,0.00039167,120]
[423049862,1779798972000,-625.87957575,0.00039167,120]
[423049871,1779798972000,-500.0,0.00039167,120]
[423049870,1779798972000,-615.50615883,0.00039167,120]
[423049869,1779798972000,-169.28542233,0.00039167,120]
[423049868,1779798972000,-618.56399671,0.00039167,120]
[423049867,1779798972000,-500.0,0.00039167,120]
[423049866,1779798972000,-234.49466089,0.00039167,120]
[423049865,1779798972000,-167.50316719,0.00039167,120]
[423049872,1779798972000,-500.0,0.00039167,120]
[423049894,1779798973000,-598.55345948,0.00039167,120]
[423049893,1779798973000,-222.72041273,0.00039167,120]
[423049891,1779798973000,-500.0,0.00039167,120]
[423049892,1779798973000,-201.89242664,0.00039167,120]
[423049890,1779798973000,-500.0,0.00039167,120]
[423049888,1779798973000,-237.81568043,0.00039167,120]
[423049889,1779798973000,-625.91630607,0.00039167,120]
[423049885,1779798973000,-637.33653012,0.00039167,120]
[423049884,1779798973000,-500.0,0.00039167,120]
[423049886,1779798973000,-155.89055529,0.00039167,120]
[423049883,1779798973000,-631.52722589,0.00039167,120]
[423049882,1779798973000,-649.68109919,0.00039167,120]
[423049881,1779798973000,-607.62640157,0.00039167,120]
[423049880,1779798973000,-590.08135085,0.00039167,120]
[423049896,1779798973000,-153.80913008,0.00039167,120]
[423049887,1779798973000,-574.41111381,0.00039167,120]
[423049897,1779798973000,-632.08394106,0.00039167,120]
[423049895,1779798973000,-500.0,0.00039167,120]
[423049914,1779798973000,-269.25820952,0.00039167,120]
[423049916,1779798973000,-1216.89,0.00039167,120]
[423049898,1779798973000,-1216.89,0.00039167,120]
[423049915,1779798973000,-1216.89,0.00039167,120]
[423049913,1779798973000,-1216.89,0.00039167,120]
[423049912,1779798973000,-500.0,0.00039167,120]
[423049910,1779798973000,-1216.89,0.00039167,120]
[423049909,1779798973000,-602.67946723,0.00039167,120]
[423049908,1779798973000,-621.45155056,0.00039167,120]
[423049911,1779798973000,-262.64939134,0.00039167,120]
[423049906,1779798973000,-1216.89,0.00039167,120]
[423049905,1779798973000,-1216.89,0.00039167,120]
[423049903,1779798973000,-1451.54,0.00039167,120]
[423049902,1779798973000,-1216.89,0.00039167,120]
[423049904,1779798973000,-1216.89,0.00039167,120]
[423049901,1779798973000,-1216.89,0.00039167,120]
[423049899,1779798973000,-1216.89,0.00039167,120]
[423049900,1779798973000,-1216.89,0.00039167,120]
[423049907,1779798973000,-500.0,0.00039167,120]
[423049926,1779798974000,-1216.89,0.00039167,120]
[423049931,1779798974000,-996.93,0.00039167,120]
[423049930,1779798974000,-1216.89,0.00039167,120]
[423049929,1779798974000,-996.93,0.00039167,120]
[423049928,1779798974000,-996.93,0.00039167,120]
[423049927,1779798974000,-1216.89,0.00039167,120]
[423049924,1779798974000,-1216.89,0.00039167,120]
[423049933,1779798974000,-1216.89,0.00039167,120]
[423049923,1779798974000,-996.93,0.00039167,120]
[423049922,1779798974000,-1216.89,0.00039167,120]
[423049921,1779798974000,-996.93,0.00039167,120]
[423049920,1779798974000,-1216.89,0.00039167,120]
[423049919,1779798974000,-996.93,0.00039167,120]
[423049918,1779798974000,-598.12775872,0.00039167,120]
[423049917,1779798974000,-1216.89,0.00039167,120]
[423049925,1779798974000,-996.93,0.00039167,120]
[423049932,1779798974000,-996.93,0.00039167,120]
[423049952,1779798974000,-500.0,0.00039167,120]
[423049936,1779798974000,-1216.89,0.00039167,120]
[423049934,1779798974000,-1216.89,0.00039167,120]
[423049950,1779798974000,-996.93,0.00039167,120]
[423049951,1779798974000,-996.93,0.00039167,120]
[423049949,1779798974000,-182.80506039,0.00039167,120]
[423049948,1779798974000,-996.93,0.00039167,120]
[423049947,1779798974000,-500.0,0.00039167,120]
[423049945,1779798974000,-996.93,0.00039167,120]
[423049942,1779798974000,-1216.89395568,0.00039167,120]
[423049946,1779798974000,-996.93,0.00039167,120]
[423049943,1779798974000,-996.93,0.00039167,120]
[423049941,1779798974000,-500.0,0.00039167,120]
[423049940,1779798974000,-996.93,0.00039167,120]
[423049939,1779798974000,-1216.89,0.00039167,120]
[423049938,1779798974000,-605.02894061,0.00039167,120]
[423049937,1779798974000,-996.93,0.00039167,120]
[423049935,1779798974000,-996.93,0.00039167,120]
[423049944,1779798974000,-201.55856092,0.00039167,120]
[423049960,1779798975000,-997.02030871,0.00039167,120]
[423049967,1779798975000,-810.2,0.00039167,120]
[423049965,1779798975000,-810.2,0.00039167,120]
[423049964,1779798975000,-810.2,0.00039167,120]
[423049966,1779798975000,-810.2,0.00039167,120]
[423049963,1779798975000,-810.2,0.00039167,120]
[423049962,1779798975000,-602.46528296,0.00039167,90]
[423049953,1779798975000,-996.93,0.00039167,120]
[423049959,1779798975000,-996.93,0.00039167,120]
[423049957,1779798975000,-996.93,0.00039167,120]
[423049958,1779798975000,-996.93,0.00039167,120]
[423049956,1779798975000,-996.93,0.00039167,120]
[423049954,1779798975000,-222.7922372,0.00039167,120]
[423049955,1779798975000,-996.93,0.00039167,120]
[423049968,1779798975000,-500.0,0.00039167,120]
[423049961,1779798975000,-810.2,0.00039167,120]
[423049969,1779798975000,-810.2,0.00039167,120]
[423049988,1779798975000,-810.2,0.00039167,120]
[423049972,1779798975000,-810.2,0.00039167,120]
[423049986,1779798975000,-810.2,0.00039167,120]
[423049987,1779798975000,-175.25566251,0.00039167,120]
[423049985,1779798975000,-500.0,0.00039167,120]
[423049983,1779798975000,-810.2,0.00039167,120]
[423049984,1779798975000,-810.2,0.00039167,120]
[423049982,1779798975000,-810.2,0.00039167,120]
[423049981,1779798975000,-810.2,0.00039167,120]
[423049979,1779798975000,-810.2,0.00039167,120]
[423049970,1779798975000,-196.48170742,0.00039167,120]
[423049978,1779798975000,-810.2,0.00039167,120]
[423049977,1779798975000,-810.2,0.00039167,120]
[423049976,1779798975000,-209.02749503,0.00039167,120]
[423049975,1779798975000,-810.2,0.00039167,120]
[423049974,1779798975000,-500.0,0.00039167,120]
[423049973,1779798975000,-810.2,0.00039167,120]
[423049971,1779798975000,-810.2,0.00039167,120]
[423049980,1779798975000,-810.2,0.00039167,120]
[423050006,1779798976000,-164.12846278,0.00039167,120]
[423050004,1779798976000,-191.312582,0.00039167,120]
[423050003,1779798976000,-500.0,0.00039167,120]
[423050002,1779798976000,-186.30091701,0.00039167,120]
[423050001,1779798976000,-500.0,0.00039167,120]
[423050000,1779798976000,-247.99158885,0.00039167,120]
[423049999,1779798976000,-500.0,0.00039167,120]
[423049998,1779798976000,-649.06820806,0.00039167,120]
[423049995,1779798976000,-166.01031517,0.00039167,120]
[423049996,1779798976000,-628.21761214,0.00039167,120]
[423049994,1779798976000,-649.79342495,0.00039167,120]
[423049993,1779798976000,-500.0,0.00039167,120]
[423049992,1779798976000,-633.47582301,0.00039167,120]
[423049990,1779798976000,-810.2,0.00039167,120]
[423049991,1779798976000,-810.32524174,0.00039167,120]
[423050005,1779798976000,-500.0,0.00039167,120]
[423049997,1779798976000,-615.7667607,0.00039167,120]
[423049989,1779798976000,-810.2,0.00039167,120]
[423050007,1779798976000,-562.70979417,0.00039167,120]
[423050010,1779798976000,-618.35023639,0.00039167,120]
[423050008,1779798976000,-500.0,0.00039167,120]
[423050025,1779798976000,-1803.54,0.00039167,120]
[423050024,1779798976000,-878.7,0.00039167,120]
[423050023,1779798976000,-1803.54,0.00039167,120]
[423050021,1779798976000,-878.7,0.00039167,120]
[423050020,1779798976000,-1803.54,0.00039167,120]
[423050022,1779798976000,-1803.54,0.00039167,120]
[423050019,1779798976000,-1803.54,0.00039167,120]
[423050027,1779798976000,-878.7,0.00039167,120]
[423050018,1779798976000,-270.58219916,0.00039167,120]
[423050015,1779798976000,-1803.54,0.00039167,120]
[423050016,1779798976000,-500.0,0.00039167,120]
[423050013,1779798976000,-1803.54,0.00039167,120]
[423050014,1779798976000,-1803.54,0.00039167,120]
[423050012,1779798976000,-1803.54,0.00039167,120]
[423050011,1779798976000,-599.71849976,0.00039167,120]
[423050009,1779798976000,-237.46175227,0.00039167,120]
[423050017,1779798976000,-1803.54,0.00039167,120]
[423050043,1779798977000,-1803.54,0.00039167,120]
[423050042,1779798977000,-878.7,0.00039167,120]
[423050041,1779798977000,-1803.54,0.00039167,120]
[423050040,1779798977000,-878.7,0.00039167,120]
[423050039,1779798977000,-1803.54,0.00039167,120]
[423050038,1779798977000,-1803.54,0.00039167,120]
[423050037,1779798977000,-878.7,0.00039167,120]
[423050032,1779798977000,-1803.54,0.00039167,120]
[423050035,1779798977000,-878.7,0.00039167,120]
[423050044,1779798977000,-878.7,0.00039167,120]
[423050034,1779798977000,-1803.54,0.00039167,120]
[423050031,1779798977000,-878.7,0.00039167,120]
[423050029,1779798977000,-878.7,0.00039167,120]
[423050030,1779798977000,-1803.54,0.00039167,120]
[423050028,1779798977000,-1803.54,0.00039167,120]
[423050036,1779798977000,-1803.54,0.00039167,120]
[423050045,1779798977000,-1803.54,0.00039167,120]
[423050033,1779798977000,-878.7,0.00039167,120]
[423050047,1779798977000,-1803.54,0.00039167,120]
[423050063,1779798977000,-878.76587817,0.00039167,120]
[423050064,1779798977000,-2362.49530617,0.00039167,120]
[423050062,1779798977000,-878.7,0.00039167,120]
[423050061,1779798977000,-878.7,0.00039167,120]
[423050059,1779798977000,-878.7,0.00039167,120]
[423050060,1779798977000,-878.7,0.00039167,120]
[423050057,1779798977000,-878.7,0.00039167,120]
[423050058,1779798977000,-878.7,0.00039167,120]
[423050046,1779798977000,-878.7,0.00039167,120]
[423050055,1779798977000,-878.7,0.00039167,120]
[423050054,1779798977000,-637.79560219,0.00039167,120]
[423050052,1779798977000,-878.7,0.00039167,120]
[423050053,1779798977000,-1803.73979447,0.00039167,120]
[423050051,1779798977000,-1803.54,0.00039167,120]
[423050050,1779798977000,-878.7,0.00039167,120]
[423050048,1779798977000,-878.7,0.00039167,120]
[423050049,1779798977000,-1803.54,0.00039167,120]
[423050056,1779798977000,-878.7,0.00039167,120]
[423050074,1779798978000,-698.91,0.00039167,120]
[423050076,1779798978000,-698.91,0.00039167,120]
[423050080,1779798978000,-698.91,0.00039167,120]
[423050079,1779798978000,-698.91,0.00039167,120]
[423050078,1779798978000,-698.91,0.00039167,120]
[423050075,1779798978000,-698.91,0.00039167,120]
[423050077,1779798978000,-698.91,0.00039167,120]
[423050073,1779798978000,-698.91,0.00039167,120]
[423050069,1779798978000,-500.0,0.00039167,120]
[423050071,1779798978000,-698.91,0.00039167,120]
[423050070,1779798978000,-213.57657558,0.00039167,120]
[423050068,1779798978000,-216.10060741,0.00039167,120]
[423050066,1779798978000,-185.42078284,0.00039167,120]
[423050067,1779798978000,-500.0,0.00039167,120]
[423050065,1779798978000,-500.0,0.00039167,120]
[423050081,1779798978000,-698.91,0.00039167,120]
[423050072,1779798978000,-698.91,0.00039167,120]
[423050082,1779798978000,-500.0,0.00039167,120]
[423050096,1779798978000,-698.91,0.00039167,120]
[423050084,1779798978000,-202.74391501,0.00039167,120]
[423050102,1779798978000,-698.96303609,0.00039167,120]
[423050100,1779798978000,-698.91,0.00039167,120]
[423050099,1779798978000,-698.91,0.00039167,120]
[423050097,1779798978000,-557.85046609,0.00039167,120]
[423050098,1779798978000,-210.9678894,0.00039167,120]
[423050083,1779798978000,-698.91,0.00039167,120]
[423050095,1779798978000,-500.0,0.00039167,120]
[423050093,1779798978000,-698.91,0.00039167,120]
[423050101,1779798978000,-698.91,0.00039167,120]
[423050091,1779798978000,-614.34533574,0.00039167,120]
[423050092,1779798978000,-211.59352533,0.00039167,120]